Workbook

Sheet Sheet1
A1: 1 | B1: 1 | O1: 1.000 | P1: 1 | Q1: =O1/255 -> 0.003921568627
A2: 2 | B2: 2 | O2: 2.000 | P2: 2 | Q2: =O2/255 -> 0.007843137255
A3: 3 | B3: 3 | O3: 3.000 | P3: 3 | Q3: =O3/255 -> 0.01176470588
A4: 4 | B4: 4 | O4: 4.000 | P4: 4 | Q4: =O4/255 -> 0.01568627451
A5: 5 | B5: 5 | O5: 5.000 | P5: 5 | Q5: =O5/255 -> 0.01960784314
A6: 6 | B6: 6 | O6: 6.000 | P6: 6 | Q6: =O6/255 -> 0.02352941176
A7: 7 | B7: 7 | O7: 7.000 | P7: 7 | Q7: =O7/255 -> 0.02745098039
A8: 8 | B8: 8 | O8: 8.000 | P8: 8 | Q8: =O8/255 -> 0.03137254902
A9: 9 | B9: 9 | O9: 9.000 | P9: 9 | Q9: =O9/255 -> 0.03529411765
A10: 10 | B10: 10 | O10: 10.000 | P10: 10 | Q10: =O10/255 -> 0.03921568627
A11: 11 | B11: 11 | O11: 11.000 | P11: 11 | Q11: =O11/255 -> 0.0431372549
A12: 12 | B12: 12 | O12: 12.000 | P12: 12 | Q12: =O12/255 -> 0.04705882353
A13: 13 | B13: 13 | O13: 13.000 | P13: 13 | Q13: =O13/255 -> 0.05098039216
A14: 14 | B14: 14 | O14: 14.000 | P14: 14 | Q14: =O14/255 -> 0.05490196078
A15: 15 | B15: 15 | O15: 15.000 | P15: 15 | Q15: =O15/255 -> 0.05882352941
A16: 16 | B16: 16 | O16: 16.000 | P16: 16 | Q16: =O16/255 -> 0.06274509804
A17: 17 | B17: 17 | O17: 17.000 | P17: 17 | Q17: =O17/255 -> 0.06666666667
A18: 18 | B18: 18 | O18: 18.000 | P18: 18 | Q18: =O18/255 -> 0.07058823529
A19: 19 | B19: 19 | O19: 19.000 | P19: 19 | Q19: =O19/255 -> 0.07450980392
A20: 20 | B20: 20 | O20: 20.000 | P20: 20 | Q20: =O20/255 -> 0.07843137255
A21: 21 | B21: 21 | O21: 21.000 | P21: 21 | Q21: =O21/255 -> 0.08235294118
A22: 22 | B22: 22 | O22: 22.000 | P22: 22 | Q22: =O22/255 -> 0.0862745098
A23: 23 | B23: 23 | O23: 23.000 | P23: 23 | Q23: =O23/255 -> 0.09019607843
A24: 24 | B24: 24 | O24: 24.000 | P24: 24 | Q24: =O24/255 -> 0.09411764706
A25: 25 | B25: 25 | O25: 25.000 | P25: 25 | Q25: =O25/255 -> 0.09803921569
A26: 26 | B26: 26 | O26: 26.000 | P26: 26 | Q26: =O26/255 -> 0.1019607843
A27: 27 | B27: 27 | O27: 27.000 | P27: 27 | Q27: =O27/255 -> 0.1058823529
A28: 28 | B28: 28 | O28: 28.000 | P28: 28 | Q28: =O28/255 -> 0.1098039216
A29: 29 | B29: 29 | O29: 29.000 | P29: 29 | Q29: =O29/255 -> 0.1137254902
A30: 30 | B30: 30 | O30: 30.000 | P30: 30 | Q30: =O30/255 -> 0.1176470588
A31: 31 | B31: 31 | O31: 31.000 | P31: 31 | Q31: =O31/255 -> 0.1215686275
A32: 32 | B32: 32 | O32: 32.000 | P32: 32 | Q32: =O32/255 -> 0.1254901961
A33: 33 | B33: 33 | O33: 33.000 | P33: 33 | Q33: =O33/255 -> 0.1294117647
A34: 34 | B34: 34 | O34: 34.000 | P34: 34 | Q34: =O34/255 -> 0.1333333333
A35: 35 | B35: 35 | O35: 35.000 | P35: 35 | Q35: =O35/255 -> 0.137254902
A36: 36 | B36: 36 | O36: 36.000 | P36: 36 | Q36: =O36/255 -> 0.1411764706
A37: 37 | B37: 37 | O37: 37.000 | P37: 37 | Q37: =O37/255 -> 0.1450980392
A38: 38 | B38: 38 | O38: 38.000 | P38: 38 | Q38: =O38/255 -> 0.1490196078
A39: 39 | B39: 39 | O39: 39.000 | P39: 39 | Q39: =O39/255 -> 0.1529411765
A40: 40 | B40: 40 | O40: 40.000 | P40: 40 | Q40: =O40/255 -> 0.1568627451
A41: 41 | B41: 41 | O41: 41.000 | P41: 41 | Q41: =O41/255 -> 0.1607843137
A42: 42 | B42: 42 | O42: 42.000 | P42: 42 | Q42: =O42/255 -> 0.1647058824
A43: 43 | B43: 43 | O43: 43.000 | P43: 43 | Q43: =O43/255 -> 0.168627451
A44: 44 | B44: 44 | O44: 44.000 | P44: 44 | Q44: =O44/255 -> 0.1725490196
A45: 45 | B45: 45 | O45: 45.000 | P45: 45 | Q45: =O45/255 -> 0.1764705882
A46: 46 | B46: 46 | O46: 46.000 | P46: 46 | Q46: =O46/255 -> 0.1803921569
A47: 47 | B47: 47 | O47: 47.000 | P47: 47 | Q47: =O47/255 -> 0.1843137255
A48: 48 | B48: 48 | O48: 48.000 | P48: 48 | Q48: =O48/255 -> 0.1882352941
A49: 49 | B49: 49 | O49: 49.000 | P49: 49 | Q49: =O49/255 -> 0.1921568627
A50: 50 | B50: 50 | O50: 50.000 | P50: 50 | Q50: =O50/255 -> 0.1960784314
A51: 51 | B51: 51 | O51: 51.000 | P51: 51 | Q51: =O51/255 -> 0.2
A52: 52 | B52: 52 | O52: 52.000 | P52: 52 | Q52: =O52/255 -> 0.2039215686
A53: 53 | B53: 53 | O53: 53.000 | P53: 53 | Q53: =O53/255 -> 0.2078431373
A54: 54 | B54: 54 | O54: 54.000 | P54: 54 | Q54: =O54/255 -> 0.2117647059
A55: 55 | B55: 55 | O55: 55.000 | P55: 55 | Q55: =O55/255 -> 0.2156862745
A56: 56 | B56: 56 | O56: 56.000 | P56: 56 | Q56: =O56/255 -> 0.2196078431
A57: 57 | B57: 57 | O57: 57.000 | P57: 57 | Q57: =O57/255 -> 0.2235294118
A58: 58 | B58: 58 | O58: 58.000 | P58: 58 | Q58: =O58/255 -> 0.2274509804
A59: 59 | B59: 59 | O59: 59.000 | P59: 59 | Q59: =O59/255 -> 0.231372549
A60: 60 | B60: 60 | O60: 60.000 | P60: 60 | Q60: =O60/255 -> 0.2352941176
A61: 61 | B61: 61 | O61: 61.000 | P61: 61 | Q61: =O61/255 -> 0.2392156863
A62: 62 | B62: 62 | O62: 62.000 | P62: 62 | Q62: =O62/255 -> 0.2431372549
A63: 63 | B63: 63 | O63: 63.000 | P63: 63 | Q63: =O63/255 -> 0.2470588235
A64: 64 | B64: 64 | O64: 64.000 | P64: 64 | Q64: =O64/255 -> 0.2509803922
A65: 65 | B65: 65 | O65: 65.000 | P65: 65 | Q65: =O65/255 -> 0.2549019608
A66: 66 | B66: 66 | O66: 66.000 | P66: 66 | Q66: =O66/255 -> 0.2588235294
A67: 67 | B67: 67 | O67: 67.000 | P67: 67 | Q67: =O67/255 -> 0.262745098
A68: 68 | B68: 68 | O68: 68.000 | P68: 68 | Q68: =O68/255 -> 0.2666666667
A69: 69 | B69: 69 | O69: 69.000 | P69: 69 | Q69: =O69/255 -> 0.2705882353
A70: 70 | B70: 70 | O70: 70.000 | P70: 70 | Q70: =O70/255 -> 0.2745098039
A71: 71 | B71: 71 | O71: 71.000 | P71: 71 | Q71: =O71/255 -> 0.2784313725
A72: 72 | B72: 72 | O72: 72.000 | P72: 72 | Q72: =O72/255 -> 0.2823529412
A73: 73 | B73: 73 | O73: 73.000 | P73: 73 | Q73: =O73/255 -> 0.2862745098
A74: 74 | B74: 74 | O74: 74.000 | P74: 74 | Q74: =O74/255 -> 0.2901960784
A75: 75 | B75: 75 | O75: 75.000 | P75: 75 | Q75: =O75/255 -> 0.2941176471
A76: 76 | B76: 76 | O76: 76.000 | P76: 76 | Q76: =O76/255 -> 0.2980392157
A77: 77 | B77: 77 | O77: 77.000 | P77: 77 | Q77: =O77/255 -> 0.3019607843
A78: 78 | B78: 78 | O78: 78.000 | P78: 78 | Q78: =O78/255 -> 0.3058823529
A79: 79 | B79: 79 | O79: 79.000 | P79: 79 | Q79: =O79/255 -> 0.3098039216
A80: 80 | B80: 80 | O80: 80.000 | P80: 80 | Q80: =O80/255 -> 0.3137254902
A81: 81 | B81: 81 | O81: 81.000 | P81: 81 | Q81: =O81/255 -> 0.3176470588
A82: 82 | B82: 82 | O82: 82.000 | P82: 82 | Q82: =O82/255 -> 0.3215686275
A83: 83 | B83: 83 | O83: 83.000 | P83: 83 | Q83: =O83/255 -> 0.3254901961
A84: 84 | B84: 84 | O84: 84.000 | P84: 84 | Q84: =O84/255 -> 0.3294117647
A85: 85 | B85: 85 | O85: 85.000 | P85: 85 | Q85: =O85/255 -> 0.3333333333
A86: 86 | B86: 86 | O86: 86.000 | P86: 86 | Q86: =O86/255 -> 0.337254902
A87: 87 | B87: 87 | O87: 87.000 | P87: 87 | Q87: =O87/255 -> 0.3411764706
A88: 88 | B88: 88 | O88: 88.000 | P88: 88 | Q88: =O88/255 -> 0.3450980392
A89: 89 | B89: 89 | O89: 89.000 | P89: 89 | Q89: =O89/255 -> 0.3490196078
A90: 90 | B90: 90 | O90: 90.000 | P90: 90 | Q90: =O90/255 -> 0.3529411765
A91: 91 | B91: 91 | O91: 91.000 | P91: 91 | Q91: =O91/255 -> 0.3568627451
A92: 92 | B92: 92 | O92: 92.000 | P92: 92 | Q92: =O92/255 -> 0.3607843137
A93: 93 | B93: 93 | O93: 93.000 | P93: 93 | Q93: =O93/255 -> 0.3647058824
A94: 94 | B94: 94 | O94: 94.000 | P94: 94 | Q94: =O94/255 -> 0.368627451
A95: 95 | B95: 95 | O95: 95.000 | P95: 95 | Q95: =O95/255 -> 0.3725490196
A96: 96 | B96: 96 | O96: 96.000 | P96: 96 | Q96: =O96/255 -> 0.3764705882
A97: 97 | B97: 97 | O97: 97.000 | P97: 97 | Q97: =O97/255 -> 0.3803921569
A98: 98 | B98: 98 | O98: 98.000 | P98: 98 | Q98: =O98/255 -> 0.3843137255
A99: 99 | B99: 99 | O99: 99.000 | P99: 99 | Q99: =O99/255 -> 0.3882352941
A100: 100 | B100: 100 | O100: 100.000 | P100: 100 | Q100: =O100/255 -> 0.3921568627
A101: 101 | B101: 101 | O101: 101.000 | P101: 101 | Q101: =O101/255 -> 0.3960784314
A102: 102 | B102: 102 | O102: 102.000 | P102: 102 | Q102: =O102/255 -> 0.4
A103: 103 | B103: 103 | O103: 103.000 | P103: 103 | Q103: =O103/255 -> 0.4039215686
A104: 104 | B104: 104 | O104: 104.000 | P104: 104 | Q104: =O104/255 -> 0.4078431373
A105: 105 | B105: 105 | O105: 105.000 | P105: 105 | Q105: =O105/255 -> 0.4117647059
A106: 106 | B106: 106 | O106: 106.000 | P106: 106 | Q106: =O106/255 -> 0.4156862745
A107: 107 | B107: 107 | O107: 107.000 | P107: 107 | Q107: =O107/255 -> 0.4196078431
A108: 108 | B108: 108 | O108: 108.000 | P108: 108 | Q108: =O108/255 -> 0.4235294118
A109: 109 | B109: 109 | O109: 109.000 | P109: 109 | Q109: =O109/255 -> 0.4274509804
A110: 110 | B110: 110 | O110: 110.000 | P110: 110 | Q110: =O110/255 -> 0.431372549
A111: 111 | B111: 111 | O111: 111.000 | P111: 111 | Q111: =O111/255 -> 0.4352941176
A112: 112 | B112: 112 | O112: 112.000 | P112: 112 | Q112: =O112/255 -> 0.4392156863
A113: 113 | B113: 113 | O113: 113.000 | P113: 113 | Q113: =O113/255 -> 0.4431372549
A114: 114 | B114: 114 | O114: 114.000 | P114: 114 | Q114: =O114/255 -> 0.4470588235
A115: 115 | B115: 115 | O115: 115.000 | P115: 115 | Q115: =O115/255 -> 0.4509803922
A116: 116 | B116: 116 | O116: 116.000 | P116: 116 | Q116: =O116/255 -> 0.4549019608
A117: 117 | B117: 117 | O117: 117.000 | P117: 117 | Q117: =O117/255 -> 0.4588235294
A118: 118 | B118: 118 | O118: 118.000 | P118: 118 | Q118: =O118/255 -> 0.462745098
A119: 119 | B119: 119 | O119: 119.000 | P119: 119 | Q119: =O119/255 -> 0.4666666667
A120: 120 | B120: 120 | O120: 120.000 | P120: 120 | Q120: =O120/255 -> 0.4705882353
A121: 121 | B121: 121 | O121: 121.000 | P121: 121 | Q121: =O121/255 -> 0.4745098039
A122: 122 | B122: 122 | O122: 122.000 | P122: 122 | Q122: =O122/255 -> 0.4784313725
A123: 123 | B123: 123 | O123: 123.000 | P123: 123 | Q123: =O123/255 -> 0.4823529412
A124: 124 | B124: 124 | O124: 124.000 | P124: 124 | Q124: =O124/255 -> 0.4862745098
A125: 125 | B125: 125 | O125: 125.000 | P125: 125 | Q125: =O125/255 -> 0.4901960784
A126: 126 | B126: 126 | O126: 126.000 | P126: 126 | Q126: =O126/255 -> 0.4941176471
A127: 127 | B127: 127 | O127: 127.000 | P127: 127 | Q127: =O127/255 -> 0.4980392157
A128: 128 | B128: 128 | O128: 128.000 | P128: 128 | Q128: =O128/255 -> 0.5019607843
A129: 129 | B129: 129 | O129: 129.000 | P129: 129 | Q129: =O129/255 -> 0.5058823529
A130: 130 | B130: 130 | O130: 130.000 | P130: 130 | Q130: =O130/255 -> 0.5098039216
A131: 131 | B131: 131 | O131: 131.000 | P131: 131 | Q131: =O131/255 -> 0.5137254902
A132: 132 | B132: 132 | O132: 132.000 | P132: 132 | Q132: =O132/255 -> 0.5176470588
A133: 133 | B133: 133 | O133: 133.000 | P133: 133 | Q133: =O133/255 -> 0.5215686275
A134: 134 | B134: 134 | O134: 134.000 | P134: 134 | Q134: =O134/255 -> 0.5254901961
A135: 135 | B135: 135 | O135: 135.000 | P135: 135 | Q135: =O135/255 -> 0.5294117647
A136: 136 | B136: 136 | O136: 136.000 | P136: 136 | Q136: =O136/255 -> 0.5333333333
A137: 137 | B137: 137 | O137: 137.000 | P137: 137 | Q137: =O137/255 -> 0.537254902
A138: 138 | B138: 138 | O138: 138.000 | P138: 138 | Q138: =O138/255 -> 0.5411764706
A139: 139 | B139: 139 | O139: 139.000 | P139: 139 | Q139: =O139/255 -> 0.5450980392
A140: 140 | B140: 140 | O140: 140.000 | P140: 140 | Q140: =O140/255 -> 0.5490196078
A141: 141 | B141: 141 | O141: 141.000 | P141: 141 | Q141: =O141/255 -> 0.5529411765
A142: 142 | B142: 142 | O142: 142.000 | P142: 142 | Q142: =O142/255 -> 0.5568627451
A143: 143 | B143: 143 | O143: 143.000 | P143: 143 | Q143: =O143/255 -> 0.5607843137
A144: 144 | B144: 144 | O144: 144.000 | P144: 144 | Q144: =O144/255 -> 0.5647058824
A145: 145 | B145: 145 | O145: 145.000 | P145: 145 | Q145: =O145/255 -> 0.568627451
A146: 146 | B146: 146 | O146: 146.000 | P146: 146 | Q146: =O146/255 -> 0.5725490196
A147: 147 | B147: 147 | O147: 147.000 | P147: 147 | Q147: =O147/255 -> 0.5764705882
A148: 148 | B148: 148 | O148: 148.000 | P148: 148 | Q148: =O148/255 -> 0.5803921569
A149: 149 | B149: 149 | O149: 149.000 | P149: 149 | Q149: =O149/255 -> 0.5843137255
A150: 150 | B150: 150 | O150: 150.000 | P150: 150 | Q150: =O150/255 -> 0.5882352941
A151: 151 | B151: 151 | O151: 151.000 | P151: 151 | Q151: =O151/255 -> 0.5921568627
A152: 152 | B152: 152 | O152: 152.000 | P152: 152 | Q152: =O152/255 -> 0.5960784314
A153: 153 | B153: 153 | O153: 153.000 | P153: 153 | Q153: =O153/255 -> 0.6
A154: 154 | B154: 154 | O154: 154.000 | P154: 154 | Q154: =O154/255 -> 0.6039215686
A155: 155 | B155: 155 | O155: 155.000 | P155: 155 | Q155: =O155/255 -> 0.6078431373
A156: 156 | B156: 156 | O156: 156.000 | P156: 156 | Q156: =O156/255 -> 0.6117647059
A157: 157 | B157: 157 | O157: 157.000 | P157: 157 | Q157: =O157/255 -> 0.6156862745
A158: 158 | B158: 158 | O158: 158.000 | P158: 158 | Q158: =O158/255 -> 0.6196078431
A159: 159 | B159: 159 | O159: 159.000 | P159: 159 | Q159: =O159/255 -> 0.6235294118
A160: 160 | B160: 160 | O160: 160.000 | P160: 160 | Q160: =O160/255 -> 0.6274509804
A161: 161 | B161: 161 | O161: 161.000 | P161: 161 | Q161: =O161/255 -> 0.631372549
A162: 162 | B162: 162 | O162: 162.000 | P162: 162 | Q162: =O162/255 -> 0.6352941176
A163: 163 | B163: 163 | O163: 163.000 | P163: 163 | Q163: =O163/255 -> 0.6392156863
A164: 164 | B164: 164 | O164: 164.000 | P164: 164 | Q164: =O164/255 -> 0.6431372549
A165: 165 | B165: 165 | O165: 165.000 | P165: 165 | Q165: =O165/255 -> 0.6470588235
A166: 166 | B166: 166 | O166: 166.000 | P166: 166 | Q166: =O166/255 -> 0.6509803922
A167: 167 | B167: 167 | O167: 167.000 | P167: 167 | Q167: =O167/255 -> 0.6549019608
A168: 168 | B168: 168 | O168: 168.000 | P168: 168 | Q168: =O168/255 -> 0.6588235294
A169: 169 | B169: 169 | O169: 169.000 | P169: 169 | Q169: =O169/255 -> 0.662745098
A170: 170 | B170: 170 | O170: 170.000 | P170: 170 | Q170: =O170/255 -> 0.6666666667
A171: 171 | B171: 171 | O171: 171.000 | P171: 171 | Q171: =O171/255 -> 0.6705882353
A172: 172 | B172: 172 | O172: 172.000 | P172: 172 | Q172: =O172/255 -> 0.6745098039
A173: 173 | B173: 173 | O173: 173.000 | P173: 173 | Q173: =O173/255 -> 0.6784313725
A174: 174 | B174: 174 | O174: 174.000 | P174: 174 | Q174: =O174/255 -> 0.6823529412
A175: 175 | B175: 175 | O175: 175.000 | P175: 175 | Q175: =O175/255 -> 0.6862745098
A176: 176 | B176: 176 | O176: 176.000 | P176: 176 | Q176: =O176/255 -> 0.6901960784
A177: 177 | B177: 177 | O177: 177.000 | P177: 177 | Q177: =O177/255 -> 0.6941176471
A178: 178 | B178: 178 | O178: 178.000 | P178: 178 | Q178: =O178/255 -> 0.6980392157
A179: 179 | B179: 179 | O179: 179.000 | P179: 179 | Q179: =O179/255 -> 0.7019607843
A180: 180 | B180: 180 | O180: 180.000 | P180: 180 | Q180: =O180/255 -> 0.7058823529
A181: 181 | B181: 181 | O181: 181.000 | P181: 181 | Q181: =O181/255 -> 0.7098039216
A182: 182 | B182: 182 | O182: 182.000 | P182: 182 | Q182: =O182/255 -> 0.7137254902
A183: 183 | B183: 183 | O183: 183.000 | P183: 183 | Q183: =O183/255 -> 0.7176470588
A184: 184 | B184: 184 | O184: 184.000 | P184: 184 | Q184: =O184/255 -> 0.7215686275
A185: 185 | B185: 185 | O185: 185.000 | P185: 185 | Q185: =O185/255 -> 0.7254901961
A186: 186 | B186: 186 | O186: 186.000 | P186: 186 | Q186: =O186/255 -> 0.7294117647
A187: 187 | B187: 187 | O187: 187.000 | P187: 187 | Q187: =O187/255 -> 0.7333333333
A188: 188 | B188: 188 | O188: 188.000 | P188: 188 | Q188: =O188/255 -> 0.737254902
A189: 189 | B189: 189 | O189: 189.000 | P189: 189 | Q189: =O189/255 -> 0.7411764706
A190: 190 | B190: 190 | O190: 190.000 | P190: 190 | Q190: =O190/255 -> 0.7450980392
A191: 191 | B191: 191 | O191: 191.000 | P191: 191 | Q191: =O191/255 -> 0.7490196078
A192: 192 | B192: 192 | O192: 192.000 | P192: 192 | Q192: =O192/255 -> 0.7529411765
A193: 193 | B193: 193 | O193: 193.000 | P193: 193 | Q193: =O193/255 -> 0.7568627451
A194: 194 | B194: 194 | O194: 194.000 | P194: 194 | Q194: =O194/255 -> 0.7607843137
A195: 195 | B195: 195 | O195: 195.000 | P195: 195 | Q195: =O195/255 -> 0.7647058824
A196: 196 | B196: 196 | O196: 196.000 | P196: 196 | Q196: =O196/255 -> 0.768627451
A197: 197 | B197: 197 | O197: 197.000 | P197: 197 | Q197: =O197/255 -> 0.7725490196
A198: 198 | B198: 198 | O198: 198.000 | P198: 198 | Q198: =O198/255 -> 0.7764705882
A199: 199 | B199: 199 | O199: 199.000 | P199: 199 | Q199: =O199/255 -> 0.7803921569
A200: 200 | B200: 200 | O200: 200.000 | P200: 200 | Q200: =O200/255 -> 0.7843137255
... 824 more rows
